bitfinex-derivatives/quotes_SOLF0:USTF0_20250413
["timestamp","ask_amount","ask_price","bid_price","bid_amount"]
[1744540299811,7.73447761,130.26,130.24,7.6802]
[1744540300108,7.73447761,130.26,130.23,0.05679479]
[1744540300412,7.73447761,130.26,130.23,7.73719479]
[1744540300706,0.05517761,130.26,130.23,0.05679479]
[1744540300907,0.05517761,130.26,130.24,7.6799]
[1744540301109,0.05517761,130.26,130.23,0.05679479]
[1744540301511,7.6797,130.25,130.23,0.05679479]
[1744540301698,0.05517761,130.26,130.23,0.05679479]
[1744540302010,7.73447761,130.26,130.23,7.73749479]
[1744540302202,0.05517761,130.26,130.23,0.05679479]
[1744540302603,0.05517761,130.26,130.24,7.6797]
[1744540302903,0.05517761,130.26,130.23,0.05679479]
[1744540303109,0.05517761,130.26,130.25,7.6796]
[1744540304911,0.05517761,130.26,130.24,7.6799]
[1744540305713,0.05517761,130.26,130.25,7.6796]
[1744540317618,6.3628,130.31,130.24,30.4]
[1744540317823,638.46,130.33,130.24,32.496]
[1744540318018,30.4,130.33,130.17,608.12]
[1744540318225,30.4,130.33,130.22,7.681]
[1744540318522,7.6794,130.26,130.22,7.681]
[1744540318821,0.0539513,130.25,130.23,0.05605711]
[1744540319426,7.7336513,130.25,130.23,0.05605711]
[1744540320121,7.6802,130.24,130.23,0.05605711]
[1744540320322,0.0539513,130.25,130.23,0.05605711]
[1744540320719,7.6802,130.24,130.23,0.05605711]
[1744540321325,7.6821,130.21,130.19,30.4]
[1744540321622,6.1698,130.28,130.19,30.4]
[1744540321825,7.6823,130.21,130.19,30.4]
[1744540322125,30.4,130.25,130.18,7.6835]
[1744540322323,7.6829,130.2,130.17,7.684]
[1744540322521,30.4,130.25,130.2,0.05075935]
[1744540322722,0.05151092,130.2,130.17,0.04860592]
[1744540323023,7.73544744,130.2,130.17,7.73606118]
[1744540323220,0.05254744,130.2,130.17,0.05206118]
[1744540324327,0.05254744,130.2,130.18,7.6835]
[1744540324625,0.05254744,130.2,130.17,0.05206118]
[1744540325026,0.05254744,130.2,130.19,7.6832]
[1744540325328,0.05254744,130.2,130.19,38.0832]
[1744540326231,36.5698,130.28,130.22,7.6811]
[1744540326433,36.5698,130.28,130.19,30.4]
[1744540326633,7.6794,130.26,130.19,30.4]
[1744540326833,36.5698,130.28,130.23,7.6806]
[1744540327034,6.1698,130.28,130.19,30.4]
[1744540327233,7.6788,130.27,130.19,30.4]
[1744540327438,0.05722229,130.25,130.22,0.05317956]
[1744540328338,0.05722229,130.25,130.24,7.6801]
[1744540333339,0.05722229,130.25,130.22,0.05317956]
[1744540333741,7.73712229,130.25,130.23,7.6808]
[1744540335739,0.05722229,130.25,130.23,7.6808]
[1744540336048,0.05722229,130.25,130.24,7.6802]
[1744540336543,0.05722229,130.25,130.23,7.6805]
[1744540340550,0.05722229,130.25,130.22,7.73427956]
[1744540341151,7.6808,130.23,130.22,0.05317956]
[1744540347551,7.6805,130.24,130.22,0.05317956]
[1744540347751,30.11722229,130.25,130.22,0.05317956]
[1744540348656,7.6802,130.24,130.22,0.05317956]
[1744540349156,30.11722229,130.25,130.22,0.05317956]
[1744540350257,7.6808,130.23,130.22,0.05317956]
[1744540353464,7.6805,130.24,130.22,0.05317956]
[1744540354665,30.11722229,130.25,130.22,0.05317956]
[1744540355060,7.6807,130.24,130.22,0.05317956]
[1744540355261,30.11722229,130.25,130.22,0.05317956]
[1744540355662,0.05722229,130.25,130.22,0.05317956]
[1744540356362,7.73712229,130.25,130.22,7.73427956]
[1744540357758,0.05722229,130.25,130.24,7.6802]
[1744540361363,35.7949,130.3,130.26,7.679]
[1744540361559,101.47025367,130.33,130.25,29.62]
[1744540361863,71.85025367,130.33,130.25,29.62]
[1744540362064,71.85025367,130.33,130.26,2.1529]
[1744540362366,0.0536675,130.31,130.28,0.05072221]
[1744540362965,0.0536675,130.31,130.3,7.6765]
[1744540363267,0.0536675,130.31,130.3,37.2965]
[1744540364668,71.85025367,130.33,130.32,7.6755]
[1744540365269,17.47789306,130.35,130.34,7.6743]
[1744540365479,115.55171744,130.39,130.33,29.62]
[1744540365767,0.0502059,130.37,130.36,7.6726]
[1744540369771,7.6693,130.43,130.35,29.67582419]
[1744540369972,7.6693,130.43,130.35,29.62]
[1744540370379,7.6693,130.43,130.4,7.6706]
[1744540370769,7.6687,130.44,130.41,7.6702]
[1744540370965,0.05062861,130.43,130.41,7.6702]
[1744540371169,0.05062861,130.43,130.4,0.0569653]
[1744540371375,0.05062861,130.43,130.41,7.6702]
[1744540372275,0.05062861,130.43,130.4,7.7275653]
[1744540372675,0.05062861,130.43,130.4,0.0569653]
[1744540372876,0.05062861,130.43,130.41,7.6701]
[1744540374283,6.1974,130.5,130.42,29.6]
[1744540374974,4.109,130.5,130.42,29.6]
[1744540375180,7.6647,130.51,130.47,7.6662]
[1744540375381,7.6647,130.51,130.47,37.2662]
[1744540375681,7.6642,130.52,130.48,7.6658]
[1744540376084,2.0578,130.53,130.48,7.6658]
[1744540376473,2.0578,130.53,130.49,7.6654]
[1744540376877,9.7212,130.53,130.47,29.6]
[1744540377074,71.85025367,130.54,130.47,29.6]
[1744540377381,7.6629,130.54,130.47,29.6]
[1744540377581,29.6,130.55,130.47,37.2664]
[1744540377778,29.6,130.55,130.47,29.6]
[1744540377978,7.6649,130.5,130.44,607.74]
[1744540378176,29.6,130.55,130.45,29.6]
[1744540378482,7.6648,130.51,130.46,29.6]
[1744540378677,29.6,130.55,130.47,7.6664]
[1744540379181,29.6,130.55,130.48,7.666]
[1744540379682,7.6648,130.51,130.47,37.2664]
[1744540380586,7.6651,130.5,130.47,37.2664]
[1744540381189,7.6651,130.5,130.47,29.58]
[1744540381378,7.6651,130.5,130.46,37.247]
[1744540382382,29.58,130.52,130.44,607.74]
[1744540382586,6.0788,130.51,130.45,29.58]
[1744540383288,7.667,130.47,130.45,29.58]
[1744540383493,6.0788,130.51,130.39,6.238]
[1744540383787,7.6689,130.44,130.4,37.2505]
[1744540383988,29.58,130.49,130.4,37.2505]
[1744540384688,29.58,130.49,130.41,7.6701]
[1744540384987,7.6683,130.45,130.41,7.6701]
[1744540385189,7.6683,130.45,130.4,29.58]
[1744540385791,7.6685,130.44,130.4,29.58]
[1744540386389,7.6685,130.44,130.41,7.6699]
[1744540386687,7.668,130.45,130.4,29.58]
[1744540386989,29.58,130.49,130.43,7.6689]
[1744540387481,7.667,130.47,130.44,7.6684]
[1744540387679,35.6588,130.51,130.43,29.58]
[1744540387883,7.6658,130.49,130.45,7.6675]
[1744540388183,7.6658,130.49,130.43,29.58]
[1744540388383,0.04973177,130.47,130.43,29.58]
[1744540388583,0.04973177,130.47,130.45,0.05071954]
[1744540388885,0.04973177,130.47,130.46,29.54]
[1744540389183,7.6643,130.52,130.46,29.54]
[1744540389587,7.6643,130.52,130.49,7.6653]
[1744540390188,0.05182764,130.52,130.5,7.6649]
[1744540390385,0.05182764,130.52,130.49,29.59532653]
[1744540390890,0.05182764,130.52,130.5,7.6648]
[1744540391795,0.05182764,130.52,130.49,37.26072653]
[1744540392090,7.71592764,130.52,130.49,37.26072653]
[1744540392491,0.05182764,130.52,130.49,37.26072653]
[1744540392694,0.05182764,130.52,130.49,29.59532653]
[1744540393093,607.4,130.61,130.53,7.663]
[1744540393396,35.6925,130.6,130.53,7.663]
[1744540393596,7.6615,130.56,130.53,7.663]
[1744540393786,6.1725,130.6,130.52,29.52]
[1744540394296,0.05418322,130.57,130.56,7.6614]
[1744540394796,0.05418322,130.57,130.55,29.57744075]
[1744540395197,0.05418322,130.57,130.55,0.05744075]
[1744540395392,0.05418322,130.57,130.52,29.52]
[1744540395695,29.52,130.57,130.49,29.52]
[1744540396097,29.52,130.57,130.49,37.1853]
[1744540396399,29.52,130.57,130.49,29.52]
[1744540396801,7.7168545,130.54,130.52,0.05260155]
[1744540397199,7.6632,130.53,130.52,0.05260155]
[1744540398400,2.1166,130.53,130.48,29.52]
[1744540399002,7.6645,130.51,130.48,37.1858]
[1744540399400,7.71666916,130.51,130.48,37.23729101]
[1744540399605,0.05216916,130.51,130.48,37.23729101]
[1744540400197,0.05216916,130.51,130.48,0.05149101]
[1744540402206,7.6649,130.5,130.48,0.05149101]
[1744540402406,0.05216916,130.51,130.48,0.05149101]
[1744540403606,7.6655,130.49,130.48,0.05149101]
[1744540403905,29.57216916,130.51,130.45,29.52]
[1744540404106,7.6666,130.48,130.45,29.52]
[1744540404702,7.6666,130.48,130.45,37.1879]
[1744540404903,7.71865178,130.48,130.45,37.24081246]
[1744540405105,0.05205178,130.48,130.45,29.57291246]
[1744540405302,0.05205178,130.48,130.47,7.6667]
[1744540406407,0.05205178,130.48,130.46,7.6672]
[1744540406607,0.05205178,130.48,130.45,29.57291246]
[1744540407104,0.05205178,130.48,130.47,7.6667]
[1744540407299,9.7801,130.53,130.47,29.52]
[1744540407506,71.85025367,130.54,130.47,29.52]
[1744540407702,71.85025367,130.54,130.47,31.509]
[1744540408210,79.51315367,130.54,130.51,7.6642]
[1744540408399,0.05471595,130.52,130.51,7.6642]
[1744540411707,73.79815367,130.58,130.54,7.6625]
[1744540412113,7.6611,130.57,130.54,7.6625]
[1744540412307,73.79815367,130.58,130.53,29.52]
[1744540412308,71.85025367,130.58,130.53,29.52]
[1744540412514,71.85025367,130.58,130.55,7.6617]
[1744540412715,71.85025367,130.58,130.54,29.52]
[1744540412914,71.90727622,130.58,130.55,0.05409548]
[1744540413115,7.6618,130.56,130.55,0.05409548]
[1744540414014,7.6611,130.57,130.55,0.05409548]
[1744540414415,0.05702255,130.58,130.55,0.05409548]
[1744540416318,0.05702255,130.58,130.56,7.6611]
[1744540419620,0.05702255,130.58,130.57,37.1008]
[1744540421418,73.94145367,130.65,130.57,29.44]
[1744540421624,71.85025367,130.65,130.57,29.44]
[1744540422223,71.85025367,130.65,130.64,7.6567]
[1744540422425,71.85025367,130.65,130.64,29.44]
[1744540422818,71.85025367,130.65,130.56,968.8705]
[1744540423018,71.85025367,130.65,130.63,0.05402113]
[1744540423219,7.6571,130.64,130.57,29.42]
[1744540423419,7.6571,130.64,130.63,0.0570843]
[1744540423622,7.6571,130.64,130.62,0.05002046]
[1744540423821,7.6571,130.64,130.6,7.6588]
[1744540424023,7.71215239,130.64,130.62,0.05172014]
[1744540424522,7.6573,130.63,130.62,0.05172014]
[1744540425120,7.71215239,130.64,130.62,0.05172014]
[1744540425315,0.05505239,130.64,130.62,0.05172014]
[1744540425720,0.05505239,130.64,130.62,7.70942014]
[1744540426221,0.05505239,130.64,130.62,0.05172014]
[1744540427323,7.71195239,130.64,130.62,0.05172014]
[1744540429021,0.05505239,130.64,130.63,7.6573]
[1744540429426,0.05505239,130.64,130.62,0.05172014]
[1744540430325,7.71175239,130.64,130.62,0.05172014]
[1744540431425,0.05505239,130.64,130.62,0.05172014]
[1744540433125,7.71185239,130.64,130.62,0.05172014]
[1744540434131,0.05505239,130.64,130.62,0.05172014]
[1744540434732,7.71185239,130.64,130.62,0.05172014]
[1744540435032,0.05505239,130.64,130.62,0.05172014]
[1744540435530,7.6573,130.63,130.62,0.05172014]
[1744540436834,2.07365239,130.64,130.62,0.05172014]
[1744540437025,0.05505239,130.64,130.62,0.05172014]
[1744540437930,7.71205239,130.64,130.62,0.05172014]
[1744540438530,7.6573,130.63,130.62,0.05172014]
[1744540439526,0.05505239,130.64,130.62,0.05172014]
[1744540439731,7.71205239,130.64,130.62,0.05172014]
[1744540440134,0.05505239,130.64,130.62,29.47172014]
[1744540440632,0.05505239,130.64,130.63,7.6573]
[1744540441333,7.6545,130.68,130.65,7.6561]
[1744540441532,7.654,130.69,130.65,7.6561]
[1744540441932,7.654,130.69,130.62,29.42]
[1744540441933,7.654,130.69,130.66,7.6555]
[1744540442234,7.6534,130.7,130.62,29.42]
[1744540442437,2.0305,130.72,130.67,7.6544]
[1744540442629,0.05863665,130.71,130.66,29.42]
[1744540442828,2.0305,130.72,130.68,0.05757989]
[1744540443025,0.05404072,130.7,130.68,0.05757989]
[1744540444932,0.05404072,130.7,130.68,7.71187989]
[1744540446836,0.05404072,130.7,130.69,7.6538]
[1744540447536,0.05404072,130.7,130.69,37.0538]
[1744540448127,0.05404072,130.7,130.69,29.4]
[1744540449337,0.05404072,130.7,130.69,37.0538]
[1744540449635,31.4174,130.75,130.69,29.4]
[1744540450039,7.6512,130.74,130.71,7.6526]
[1744540450534,39.0681,130.75,130.71,7.6526]
[1744540450735,0.05816249,130.74,130.71,7.7067158]
[1744540451338,7.70926249,130.74,130.71,7.7067158]
[1744540452334,0.05816249,130.74,130.71,0.0541158]
[1744540452933,7.6536,130.7,130.66,29.36]
[1744540453338,31.3574,130.75,130.66,29.36]
[1744540453539,7.6527,130.71,130.68,7.6543]
[1744540454139,0.0583943,130.71,130.69,7.6538]
[1744540456440,0.0583943,130.71,130.68,7.7066897]
[1744540457039,7.7109943,130.71,130.68,7.7066897]
[1744540457440,0.0583943,130.71,130.68,7.7066897]
[1744540457836,0.0583943,130.71,130.68,0.0525897]
[1744540458234,7.6536,130.7,130.68,0.0525897]
[1744540462343,0.0583943,130.71,130.69,29.36]
[1744540463342,0.0583943,130.71,130.7,7.6532]
[1744540468147,0.0583943,130.71,130.69,37.0137]
[1744540468743,0.0583943,130.71,130.7,7.6532]
[1744540471544,0.0583943,130.71,130.69,37.0135]
[1744540471747,0.0583943,130.71,130.68,0.0525897]
[1744540472545,0.0583943,130.71,130.68,7.7065897]
[1744540473046,0.0583943,130.71,130.68,0.0525897]
[1744540473241,0.0583943,130.71,130.69,7.6537]
[1744540473446,0.0583943,130.71,130.68,0.0525897]
[1744540474146,0.0583943,130.71,130.69,7.6537]
[1744540476149,0.0583943,130.71,130.68,7.7066897]
[1744540476351,7.7109943,130.71,130.68,7.7066897]
[1744540476551,0.0583943,130.71,130.68,0.0525897]
[1744540476751,0.0583943,130.71,130.69,7.6535]
[1744540477548,0.0583943,130.71,130.68,7.7066897]
[1744540477747,7.7110943,130.71,130.68,7.7066897]
[1744540477950,0.0583943,130.71,130.68,0.0525897]
[1744540478146,7.6538,130.69,130.68,0.0525897]
[1744540478357,0.0583943,130.71,130.65,29.36]
[1744540478554,4.0695,130.7,130.65,29.36]
[1744540479055,7.6541,130.69,130.65,37.0158]
[1744540479355,4.0695,130.7,130.65,37.0158]
[1744540479557,0.05871925,130.68,130.66,0.04897131]
[1744540480156,7.71341925,130.68,130.66,0.04897131]
[1744540480557,0.05871925,130.68,130.66,0.04897131]
[1744540482957,0.05871925,130.68,130.67,7.655]
[1744540487059,0.05871925,130.68,130.66,7.70427131]
[1744540487762,0.05871925,130.68,130.67,7.655]
[1744540488362,0.05871925,130.68,130.66,7.70417131]
[1744540489064,0.05871925,130.68,130.66,0.04897131]
[1744540489565,0.05871925,130.68,130.66,7.70447131]
[1744540491665,0.05871925,130.68,130.67,7.655]
[1744540493069,0.05871925,130.68,130.66,7.70427131]
[1744540493865,0.05871925,130.68,130.67,7.655]
[1744540495269,0.05871925,130.68,130.66,0.04897131]
[1744540495567,0.05871925,130.68,130.66,7.70427131]
[1744540495867,7.71341925,130.68,130.66,0.04897131]
[1744540496563,7.655,130.67,130.66,0.04897131]
[1744540497972,7.6557,130.66,130.63,7.657]
[1744540498170,1.9569,130.67,130.62,29.02]
[1744540498467,1.9569,130.67,130.62,36.6775]
[1744540498972,7.6558,130.66,130.62,36.6775]
[1744540499175,7.71237681,130.66,130.63,0.05032084]
[1744540499572,7.6562,130.65,130.63,0.05032084]
[1744540500573,7.71237681,130.66,130.63,0.05032084]
[1744540500870,7.71237681,130.66,130.63,7.70752084]
[1744540501072,0.05657681,130.66,130.63,7.70752084]
[1744540501372,0.05657681,130.66,130.65,7.6561]
[1744540502872,0.05657681,130.66,130.64,7.6565]
[1744540503873,0.05657681,130.66,130.65,7.6561]
[1744540504175,0.05657681,130.66,130.63,0.05032084]
[1744540505279,7.71247681,130.66,130.63,0.05032084]
[1744540506077,7.71247681,130.66,130.63,7.70752084]
[1744540506874,7.71247681,130.66,130.63,0.05032084]
[1744540507566,7.71247681,130.66,130.63,7.70732084]
[1744540510880,0.05657681,130.66,130.63,7.70732084]
[1744540512976,0.05657681,130.66,130.65,7.6561]
[1744540514383,71.85025367,130.71,130.68,7.6538]
[1744540514585,71.85025367,130.71,130.63,28.7]
[1744540515077,71.85025367,130.71,130.64,4.1293]
[1744540515283,107.58347801,130.72,130.64,4.1293]
[1744540515488,0.05644717,130.69,130.66,0.05198926]
[1744540515678,0.05644717,130.69,130.68,7.6544]
[1744540516985,71.85025367,130.73,130.72,7.652]
[1744540518885,0.05067205,130.74,130.72,7.652]
[1744540520582,0.05067205,130.74,130.73,7.6514]
[1744540523785,0.05067205,130.74,130.73,36.3314]
[1744540524290,28.68,130.79,130.73,28.68]
[1744540524887,28.68,130.79,130.75,7.6499]
[1744540525087,76.04525367,130.8,130.73,28.68]
[1744540525387,0.05901151,130.78,130.76,7.6494]
[1744540525586,0.05901151,130.78,130.75,0.05744073]
[1744540525988,0.05901151,130.78,130.77,7.6491]
[1744540526389,0.05901151,130.78,130.75,0.05744073]
[1744540526597,0.05901151,130.78,130.76,7.6493]
[1744540526791,0.05901151,130.78,130.75,0.05744073]
[1744540526986,0.05901151,130.78,130.77,7.6491]
[1744540533299,7.6459,130.83,130.76,28.68]
[1744540533598,30.663,130.85,130.76,28.68]
[1744540533799,1.983,130.85,130.77,6.0516]
[1744540534193,2.084,130.87,130.77,6.0516]
[1744540534395,0.04891982,130.83,130.81,0.04977681]
[1744540534594,0.04891982,130.83,130.82,28.68]
[1744540535302,0.04891982,130.83,130.82,36.3262]
[1744540535502,7.6431,130.88,130.82,28.68]
[1744540535904,7.6423,130.89,130.85,7.6439]
[1744540536105,7.6423,130.89,130.82,28.68]
[1744540536709,0.04824902,130.87,130.86,7.6437]
[1744540538699,71.85025367,130.91,130.85,28.66]
[1744540539108,71.85025367,130.91,130.89,7.6416]
[1744540539606,71.9080453,130.91,130.89,7.69883071]
[1744540540104,71.9080453,130.91,130.9,7.6415]
[1744540540709,0.05779163,130.91,130.9,7.6415]
[1744540542609,0.05779163,130.91,130.89,7.69903071]
[1744540543004,0.05779163,130.91,130.9,7.6415]
[1744540543610,0.05779163,130.91,130.89,7.69903071]
[1744540544704,0.05779163,130.91,130.89,0.05723071]
[1744540545009,28.71779163,130.91,130.8,28.66]
[1744540545209,28.66,130.91,130.8,28.66]
[1744540545507,7.6425,130.89,130.85,7.6443]
[1744540545701,28.66,130.88,130.85,7.6443]
[1744540546009,28.71262984,130.88,130.85,7.70158506]
[1744540546611,28.71262984,130.88,130.85,0.05728506]
[1744540547010,28.71262984,130.88,130.85,7.70158506]
[1744540548611,28.71262984,130.88,130.85,0.05728506]
[1744540549111,4.172,130.87,130.85,0.05728506]
[1744540549306,11.8155,130.87,130.85,0.05728506]
[1744540550306,7.6438,130.86,130.85,0.05728506]
[1744540550908,13.8989,130.87,130.85,0.05728506]
[1744540552712,7.6438,130.86,130.85,0.05728506]
[1744540553006,6.2554,130.87,130.81,7.6466]
[1744540553413,7.6447,130.85,130.81,7.6466]
[1744540553711,36.2847,130.85,130.81,7.6466]
[1744540554010,0.05787027,130.84,130.82,0.05859924]
[1744540555912,7.70297027,130.84,130.82,0.05859924]
[1744540558211,0.05787027,130.84,130.82,0.05859924]
[1744540559107,0.05787027,130.84,130.83,7.6456]
[1744540561908,0.05787027,130.84,130.82,0.05859924]
[1744540563311,0.05787027,130.84,130.76,358.0]
[1744540563513,30.7127,130.85,130.75,634.16]
[1744540563712,7.6473,130.81,130.77,7.6488]
[1744540564319,0.05114565,130.8,130.78,0.04851311]
[1744540564920,0.05114565,130.8,130.78,7.69691311]
[1744540566020,7.69854565,130.8,130.78,0.04851311]
[1744540566220,0.05114565,130.8,130.78,0.04851311]
[1744540567520,7.69854565,130.8,130.78,0.04851311]
[1744540568523,0.05114565,130.8,130.78,7.69691311]
[1744540570026,7.69854565,130.8,130.78,7.69691311]
[1744540570722,7.69854565,130.8,130.78,0.04851311]
[1744540570923,7.6479,130.79,130.78,0.04851311]
[1744540571220,0.05114565,130.8,130.74,7.6505]
[1744540571415,7.6491,130.78,130.74,7.6505]
[1744540571723,28.66,130.79,130.74,7.6505]
[1744540571925,7.6494,130.77,130.73,7.6512]
[1744540572224,28.66,130.79,130.72,28.66]
[1744540572419,28.66,130.79,130.68,5.55651481]
[1744540572420,7.6507,130.75,130.74,0.04919696]
[1744540574721,2.0669,130.75,130.67,358.0]
[1744540574919,2.0669,130.75,130.66,28.66]
[1744540575725,0.05487417,130.72,130.69,7.70944906]
[1744540577230,0.05487417,130.72,130.69,0.05604906]
[1744540577822,0.05487417,130.72,130.7,7.6528]
[1744540579234,0.05487417,130.72,130.71,7.6526]
[1744540579435,0.05487417,130.72,130.69,0.05604906]
[1744540580234,0.05487417,130.72,130.71,7.6526]
[1744540580434,4.1184,130.78,130.69,28.71604906]
[1744540580634,28.66,130.77,130.69,28.71604906]
[1744540580828,36.3093,130.77,130.73,7.6509]
[1744540581233,7.6498,130.76,130.73,7.6509]
[1744540583233,7.6504,130.75,130.72,7.6517]
[1744540583433,28.66,130.77,130.69,28.66]
[1744540583837,7.651,130.74,130.71,7.6523]
[1744540585737,7.6515,130.73,130.71,7.6523]
[1744540585934,7.6515,130.73,130.69,28.66]
[1744540586141,28.66,130.77,130.69,28.66]
[1744540587339,7.6512,130.74,130.71,7.6526]
[1744540588742,28.66,130.77,130.69,28.66]
[1744540588944,0.04833767,130.74,130.71,0.05037449]
[1744540589339,0.04833767,130.74,130.73,7.6511]
[1744540590243,0.04833767,130.74,130.71,0.05037449]
[1744540590244,0.04833767,130.74,130.72,7.6517]
[1744540592144,0.04833767,130.74,130.73,7.6514]
[1744540592841,7.6489,130.78,130.74,7.6503]
[1744540593042,7.6489,130.78,130.72,30.7178]
[1744540593545,7.6489,130.78,130.74,7.6504]
[1744540594046,0.05570287,130.77,130.75,0.05478877]
[1744540594941,0.05570287,130.77,130.76,7.6497]
[1744540595144,28.66,130.82,130.75,0.05478877]
[1744540595342,28.66,130.82,130.75,28.66]
[1744540595945,7.6471,130.81,130.78,7.6483]
[1744540596143,7.6471,130.81,130.78,7.70202914]
[1744540596347,7.70579647,130.81,130.78,7.70202914]
[1744540597944,0.05869647,130.81,130.78,0.05372914]
[1744540598346,0.05869647,130.81,130.78,28.71372914]
[1744540598844,0.05869647,130.81,130.8,7.6474]
[1744540599846,0.05869647,130.81,130.79,7.6475]
[1744540600348,0.05869647,130.81,130.78,36.36202914]
[1744540600543,0.05869647,130.81,130.78,28.71372914]
[1744540600846,0.05869647,130.81,130.78,0.05372914]
[1744540601046,7.70579647,130.81,130.78,0.05372914]
[1744540602046,7.70579647,130.81,130.78,7.70222914]
[1744540602549,0.05869647,130.81,130.78,0.05372914]
[1744540602945,2.15629647,130.81,130.78,0.05372914]
[1744540603348,7.6474,130.8,130.78,0.05372914]
[1744540604152,9.80309647,130.81,130.78,0.05372914]
[1744540605851,7.6474,130.8,130.78,0.05372914]
[1744540611250,7.6479,130.79,130.78,0.05372914]
[1744540613452,7.6476,130.8,130.78,0.05372914]
[1744540614949,7.6479,130.79,130.78,0.05372914]
[1744540615153,7.6479,130.79,130.72,2.0765]
[1744540615154,30.7893,130.79,130.71,28.66]
[1744540615354,7.6498,130.76,130.73,7.6513]
[1744540615953,7.6498,130.76,130.72,7.6518]
[1744540616257,0.05453095,130.75,130.73,0.05365503]
[1744540618156,7.6509,130.74,130.73,0.05365503]
[1744540619758,7.70513095,130.75,130.73,0.05365503]
[1744540620854,0.05453095,130.75,130.73,0.05365503]
[1744540621361,0.05453095,130.75,130.74,7.6509]
[1744540622058,0.05453095,130.75,130.73,7.70485503]
[1744540622959,73.90505367,130.8,130.74,28.66]
[1744540623165,71.85025367,130.8,130.74,28.66]
[1744540623365,71.85025367,130.8,130.75,4.1239]
[1744540623663,17.40342029,130.82,130.75,6.2015]
[1744540624263,17.40342029,130.82,130.81,7.6468]
[1744540625466,17.40342029,130.82,130.8,0.0553006]
[1744540625968,7.6468,130.81,130.8,0.0553006]
[1744540626168,17.40342029,130.82,130.8,0.0553006]
[1744540626468,0.05408853,130.83,130.8,0.0553006]
[1744540627257,7.69988853,130.83,130.8,7.7025006]
[1744540627461,0.05408853,130.83,130.8,0.0553006]
[1744540627870,0.05408853,130.83,130.81,7.6468]
[1744540628467,0.05408853,130.83,130.82,7.6462]
[1744540632170,0.05408853,130.83,130.81,7.6466]
[1744540632470,0.05408853,130.83,130.8,0.0553006]
[1744540633168,7.6468,130.81,130.8,0.0553006]
[1744540637170,7.6489,130.78,130.75,28.66]
[1744540637568,7.6482,130.79,130.75,36.3099]
[1744540638165,7.6487,130.78,130.74,7.6506]
[1744540638368,7.70156173,130.78,130.76,0.05815591]
[1744540638771,0.05286173,130.78,130.76,0.05815591]
[1744540638973,7.6491,130.77,130.76,0.05815591]
[1744540639572,7.70166173,130.78,130.76,0.05815591]
[1744540641773,7.6491,130.77,130.76,0.05815591]
[1744540642566,0.05286173,130.78,130.72,28.64]
[1744540642773,2.0232,130.77,130.62,358.0]
[1744540643073,7.653,130.71,130.67,7.6548]
[1744540643665,0.0506657,130.7,130.68,7.71251213]
[1744540645076,7.7040657,130.7,130.68,0.05831213]
[1744540646975,0.0506657,130.7,130.68,0.05831213]
[1744540647279,0.0506657,130.7,130.68,7.71251213]
[1744540653384,0.0506657,130.7,130.69,7.6538]
[1744540653683,30.7637,130.76,130.68,28.71831213]
[1744540653881,28.66,130.76,130.69,2.0967]
[1744540654184,36.3101,130.76,130.73,7.6511]
[1744540654783,36.36075036,130.76,130.73,7.70894674]
[1744540655982,36.36075036,130.76,130.74,7.6507]
[1744540655983,28.71065036,130.76,130.74,7.6507]
[1744540656285,0.05065036,130.76,130.74,7.6507]
[1744540657281,0.05065036,130.76,130.75,7.6503]
[1744540657678,30.657,130.82,130.77,7.6488]
[1744540657982,30.657,130.82,130.74,28.66]
[1744540658184,7.6484,130.79,130.74,28.66]
[1744540658384,30.657,130.82,130.69,970.2144]
[1744540658586,28.66,130.79,130.7,28.66]
[1744540658886,7.70081264,130.76,130.73,0.05803885]
[1744540659694,7.70081264,130.76,130.73,7.70933885]
[1744540660492,7.6503,130.75,130.73,0.05803885]
[1744540660790,0.05061264,130.76,130.73,0.05803885]
[1744540660791,28.71061264,130.76,130.73,0.05803885]
[1744540661592,36.36081264,130.76,130.73,0.05803885]
[1744540662889,0.05061264,130.76,130.73,0.05803885]
[1744540663090,0.05061264,130.76,130.74,7.6505]
[1744540663392,0.05061264,130.76,130.73,28.71803885]